[Event "*** Titled Tuesday Blitz"]
[Site "Chess.com"]
[Date "2021.03.09"]
[Round "4"]
[White "Homyakova_Elena"]
[Black "Omk124"]
[Result "0-1"]
[WhiteElo "2270"]
[BlackElo "2455"]
[TimeControl "180+1"]
[EndTime "10:42:41 PST"]
[Termination "Omk124 won by resignation"]

1. e4 {[%clk 0:03:00.9]} 1... c5 {[%clk 0:02:59.4]} 2. Nf3 {[%clk 0:03:01.1]}
2... d6 {[%clk 0:02:59.8]} 3. d4 {[%clk 0:03:01.3]} 3... cxd4 {[%clk 0:03:00.5]}
4. Nxd4 {[%clk 0:03:02.2]} 4... Nf6 {[%clk 0:03:01]} 5. Nc3 {[%clk 0:03:02.5]}
5... a6 {[%clk 0:03:01.6]} 6. Be2 {[%clk 0:03:02.5]} 6... e5 {[%clk 0:03:02]} 7.
Nb3 {[%clk 0:03:02.8]} 7... Be7 {[%clk 0:03:02.4]} 8. O-O {[%clk 0:03:03.1]}
8... O-O {[%clk 0:03:02.8]} 9. Kh1 {[%clk 0:03:03.2]} 9... b6 {[%clk 0:03:03.1]}
10. f4 {[%clk 0:02:58.5]} 10... Nbd7 {[%clk 0:03:00]} 11. a4 {[%clk 0:02:56.1]}
11... Bb7 {[%clk 0:03:00.3]} 12. Bf3 {[%clk 0:02:55.7]} 12... Rc8 {[%clk
0:02:55.1]} 13. Be3 {[%clk 0:02:45.9]} 13... Re8 {[%clk 0:02:47.8]} 14. Qe1
{[%clk 0:02:42.4]} 14... Bf8 {[%clk 0:02:44.2]} 15. f5 {[%clk 0:02:35.5]} 15...
d5 {[%clk 0:02:21.8]} 16. g4 {[%clk 0:01:09.5]} 16... d4 {[%clk 0:01:39.8]} 17.
g5 {[%clk 0:01:05.5]} 17... dxe3 {[%clk 0:00:46.8]} 18. gxf6 {[%clk 0:01:03]}
18... Qxf6 {[%clk 0:00:41]} 19. Qxe3 {[%clk 0:00:58.3]} 19... Bb4 {[%clk
0:00:40.7]} 20. Rad1 {[%clk 0:00:49.9]} 20... Nc5 {[%clk 0:00:38.9]} 21. Nd5
{[%clk 0:00:46.4]} 21... Bxd5 {[%clk 0:00:31.4]} 22. Rxd5 {[%clk 0:00:47.3]}
22... Nxa4 {[%clk 0:00:28.9]} 23. c3 {[%clk 0:00:38.6]} 23... Bf8 {[%clk
0:00:27.6]} 24. Qd2 {[%clk 0:00:31.7]} 24... Qc6 {[%clk 0:00:23.9]} 25. Rd7
{[%clk 0:00:26.9]} 25... Qc4 {[%clk 0:00:20.4]} 26. Rg1 {[%clk 0:00:15.1]} 26...
Qxb3 {[%clk 0:00:20.1]} 27. Be2 {[%clk 0:00:14.5]} 27... Nc5 {[%clk 0:00:17.9]}
28. Ra7 {[%clk 0:00:11.5]} 28... Nxe4 {[%clk 0:00:17.4]} 29. Qe3 {[%clk
0:00:11.2]} 29... Nf6 {[%clk 0:00:17.3]} 30. Rxa6 {[%clk 0:00:09.5]} 30... Qd5+
{[%clk 0:00:16.6]} 31. Bf3 {[%clk 0:00:09]} 31... e4 {[%clk 0:00:16.6]} 32. Bg2
{[%clk 0:00:09.4]} 32... Qxf5 {[%clk 0:00:16.7]} 33. Qe2 {[%clk 0:00:07.4]}
33... Bc5 {[%clk 0:00:15.9]} 34. Rf1 {[%clk 0:00:07.7]} 34... Qg4 {[%clk
0:00:15]} 35. Qxg4 {[%clk 0:00:06.6]} 35... Nxg4 {[%clk 0:00:15.9]} 36. Ra7
{[%clk 0:00:07.2]} 36... Nf2+ {[%clk 0:00:16.1]} 37. Kg1 {[%clk 0:00:06.6]}
37... Nd3+ {[%clk 0:00:16]} 38. Kh1 {[%clk 0:00:06.9]} 38... Nf2+ {[%clk
0:00:13.2]} 39. Kg1 {[%clk 0:00:06.9]} 39... Ng4+ {[%clk 0:00:14.1]} 40. Kh1
{[%clk 0:00:07.2]} 40... Nf6 {[%clk 0:00:14.7]} 41. h3 {[%clk 0:00:07.3]} 41...
e3 {[%clk 0:00:15.3]} 42. Re1 {[%clk 0:00:07.7]} 42... e2 {[%clk 0:00:15.9]} 43.
b4 {[%clk 0:00:07.6]} 43... Bf2 {[%clk 0:00:15.8]} 44. Rxe2 {[%clk 0:00:07.3]}
44... Rxe2 {[%clk 0:00:16.7]} 45. Bb7 {[%clk 0:00:07.1]} 45... Rd8 {[%clk
0:00:16.3]} 46. Kg2 {[%clk 0:00:06.6]} 46... Bd4+ {[%clk 0:00:15.5]} 47. Kf3
{[%clk 0:00:07.5]} 47... Re3+ {[%clk 0:00:15.9]} 48. Kf4 {[%clk 0:00:07.5]}
48... Rxc3 {[%clk 0:00:15.5]} 49. b5 {[%clk 0:00:06.7]} 49... Be5+ {[%clk
0:00:15.5]} 50. Kxe5 {[%clk 0:00:06.3]} 50... Rc5+ {[%clk 0:00:16]} 51. Kf4
{[%clk 0:00:05.2]} 51... Rxb5 {[%clk 0:00:16.6]} 52. Bc6 {[%clk 0:00:05.5]}
52... Rh5 {[%clk 0:00:16.3]} 53. Kg3 {[%clk 0:00:05.3]} 53... h6 {[%clk
0:00:16]} 54. Bf3 {[%clk 0:00:04.7]} 54... Rg5+ {[%clk 0:00:15.5]} 55. Kf2
{[%clk 0:00:04.5]} 55... g6 {[%clk 0:00:15.5]} 56. Ke3 {[%clk 0:00:04.8]} 56...
Re5+ {[%clk 0:00:15.5]} 57. Kf4 {[%clk 0:00:04.8]} 57... Rf5+ {[%clk 0:00:16.2]}
58. Kg3 {[%clk 0:00:05.1]} 58... Rd3 {[%clk 0:00:16.1]} 59. Ra8+ {[%clk
0:00:04.5]} 59... Kg7 {[%clk 0:00:16.6]} 60. Kg2 {[%clk 0:00:04.9]} 60... Rdxf3
{[%clk 0:00:17]} 0-1

[Event "*** Titled Tuesday Blitz"]
[Site "Chess.com"]
[Date "2021.03.09"]
[Round "4"]
[White "malakismayil"]
[Black "witcher8"]
[Result "0-1"]
[WhiteElo "2281"]
[BlackElo "2463"]
[TimeControl "180+1"]
[EndTime "10:42:42 PST"]
[Termination "witcher8 won by checkmate"]

1. e4 {[%clk 0:03:00.9]} 1... c6 {[%clk 0:02:59.8]} 2. d4 {[%clk 0:03:00.4]}
2... d5 {[%clk 0:03:00.7]} 3. exd5 {[%clk 0:03:01.2]} 3... cxd5 {[%clk
0:03:00.4]} 4. Bd3 {[%clk 0:03:01.7]} 4... Nf6 {[%clk 0:03:00.6]} 5. c3 {[%clk
0:03:02]} 5... Nc6 {[%clk 0:03:01.1]} 6. h3 {[%clk 0:03:01.8]} 6... g6 {[%clk
0:03:00.8]} 7. Nf3 {[%clk 0:03:00.5]} 7... Bf5 {[%clk 0:03:01.2]} 8. Bb5 {[%clk
0:02:59.4]} 8... Bg7 {[%clk 0:02:59.4]} 9. O-O {[%clk 0:02:57.9]} 9... O-O
{[%clk 0:02:59]} 10. Re1 {[%clk 0:02:51]} 10... a6 {[%clk 0:02:59.1]} 11. Bxc6
{[%clk 0:02:49.4]} 11... bxc6 {[%clk 0:03:00]} 12. Ne5 {[%clk 0:02:48.5]} 12...
Rc8 {[%clk 0:02:59.8]} 13. Nd2 {[%clk 0:02:45.2]} 13... c5 {[%clk 0:02:59]} 14.
Nb3 {[%clk 0:02:43.4]} 14... cxd4 {[%clk 0:02:48.6]} 15. Nxd4 {[%clk 0:02:38.9]}
15... Ne4 {[%clk 0:02:46.3]} 16. Nef3 {[%clk 0:01:48.6]} 16... Bd7 {[%clk
0:02:27.9]} 17. Nb3 {[%clk 0:01:28.6]} 17... Ba4 {[%clk 0:02:09]} 18. Be3 {[%clk
0:01:11.6]} 18... Rb8 {[%clk 0:02:08.7]} 19. Qe2 {[%clk 0:01:10.6]} 19... Bb5
{[%clk 0:02:06.9]} 20. Qc2 {[%clk 0:01:08.7]} 20... Qc7 {[%clk 0:01:47.9]} 21.
Nbd2 {[%clk 0:01:07.8]} 21... Nc5 {[%clk 0:01:39.5]} 22. Bxc5 {[%clk 0:01:05]}
22... Qxc5 {[%clk 0:01:39.2]} 23. Nb3 {[%clk 0:01:05.6]} 23... Qc7 {[%clk
0:01:33.8]} 24. Qd2 {[%clk 0:01:04.9]} 24... Rfd8 {[%clk 0:01:22.3]} 25. Nbd4
{[%clk 0:01:00.5]} 25... Be8 {[%clk 0:01:22.3]} 26. Qe2 {[%clk 0:00:58.9]} 26...
e6 {[%clk 0:01:15.8]} 27. Rad1 {[%clk 0:00:51.6]} 27... Ba4 {[%clk 0:01:13.3]}
28. Rd2 {[%clk 0:00:50.3]} 28... Re8 {[%clk 0:01:09.8]} 29. Qxa6 {[%clk
0:00:28]} 29... Ra8 {[%clk 0:00:58.8]} 30. Qf1 {[%clk 0:00:22.2]} 30... e5
{[%clk 0:00:57.4]} 31. Nb3 {[%clk 0:00:21.9]} 31... Bc6 {[%clk 0:00:55.7]} 32.
a3 {[%clk 0:00:18.1]} 32... Bh6 {[%clk 0:00:30.2]} 33. Qe2 {[%clk 0:00:06.5]}
33... Bxd2 {[%clk 0:00:26.9]} 34. Qxd2 {[%clk 0:00:07.4]} 34... Rab8 {[%clk
0:00:20.8]} 35. Nc5 {[%clk 0:00:07.7]} 35... Qd6 {[%clk 0:00:14.8]} 36. b4
{[%clk 0:00:07.6]} 36... d4 {[%clk 0:00:15.2]} 37. Nh2 {[%clk 0:00:03.7]} 37...
Qd5 {[%clk 0:00:14.4]} 38. f3 {[%clk 0:00:03.8]} 38... dxc3 {[%clk 0:00:12.9]}
39. Qxc3 {[%clk 0:00:04.7]} 39... Qd4+ {[%clk 0:00:12]} 40. Qxd4 {[%clk
0:00:04.4]} 40... exd4 {[%clk 0:00:12.9]} 41. Rd1 {[%clk 0:00:05.2]} 41... Rbd8
{[%clk 0:00:10.1]} 42. Nf1 {[%clk 0:00:03.9]} 42... Re2 {[%clk 0:00:07.8]} 43.
Nd2 {[%clk 0:00:02.1]} 43... d3 {[%clk 0:00:07.2]} 44. Ndb3 {[%clk 0:00:02.6]}
44... d2 {[%clk 0:00:05.4]} 45. Kf1 {[%clk 0:00:03.1]} 45... Bb5 {[%clk
0:00:04.8]} 46. a4 {[%clk 0:00:01.1]} 46... Re1+ {[%clk 0:00:04.2]} 47. Kf2
{[%clk 0:00:01.6]} 47... Rxd1 {[%clk 0:00:02.9]} 48. axb5 {[%clk 0:00:02.5]}
48... Rf1+ {[%clk 0:00:03.1]} 49. Kg3 {[%clk 0:00:03.4]} 49... d1=Q {[%clk
0:00:03.8]} 50. b6 {[%clk 0:00:03.9]} 50... Qd6+ {[%clk 0:00:03.9]} 51. Kg4
{[%clk 0:00:03.4]} 51... Qxb6 {[%clk 0:00:04.8]} 52. Kh4 {[%clk 0:00:04.2]}
52... Qd6 {[%clk 0:00:04.6]} 53. Ne4 {[%clk 0:00:04.5]} 53... Qf4+ {[%clk
0:00:04.5]} 54. g4 {[%clk 0:00:05.1]} 54... Qxf3 {[%clk 0:00:04.7]} 55. Ng5
{[%clk 0:00:04.5]} 55... Qf2# {[%clk 0:00:04.7]} 0-1

[Event "*** Titled Tuesday Blitz"]
[Site "Chess.com"]
[Date "2021.03.09"]
[Round "4"]
[White "Moon_stone123"]
[Black "FredyMatsuura"]
[Result "1-0"]
[WhiteElo "2505"]
[BlackElo "2205"]
[TimeControl "180+1"]
[EndTime "10:42:45 PST"]
[Termination "Moon_stone123 won on time"]

1. Nf3 {[%clk 0:03:00.9]} 1... Nf6 {[%clk 0:02:59.6]} 2. g3 {[%clk 0:03:01.3]}
2... b5 {[%clk 0:02:59.3]} 3. Bg2 {[%clk 0:03:01.3]} 3... Bb7 {[%clk 0:02:59.7]}
4. O-O {[%clk 0:03:00.9]} 4... c5 {[%clk 0:02:59.5]} 5. d3 {[%clk 0:03:00.5]}
5... d6 {[%clk 0:02:55.4]} 6. e4 {[%clk 0:02:59.9]} 6... e5 {[%clk 0:02:54.8]}
7. h3 {[%clk 0:02:55.6]} 7... Be7 {[%clk 0:02:54.3]} 8. Nh4 {[%clk 0:02:54.1]}
8... O-O {[%clk 0:02:54.4]} 9. Nf5 {[%clk 0:02:51.1]} 9... Re8 {[%clk
0:02:50.8]} 10. f4 {[%clk 0:02:42.6]} 10... Bf8 {[%clk 0:02:48.3]} 11. fxe5
{[%clk 0:02:40.9]} 11... dxe5 {[%clk 0:02:47.6]} 12. Nc3 {[%clk 0:02:36.9]}
12... b4 {[%clk 0:02:30]} 13. Ne2 {[%clk 0:02:36.8]} 13... Nbd7 {[%clk
0:02:14.8]} 14. Bg5 {[%clk 0:02:35.4]} 14... Qb6 {[%clk 0:02:13.2]} 15. Be3
{[%clk 0:02:34.8]} 15... Qe6 {[%clk 0:02:06.1]} 16. g4 {[%clk 0:02:34.7]} 16...
h6 {[%clk 0:02:00.9]} 17. Neg3 {[%clk 0:02:29.8]} 17... c4 {[%clk 0:01:53.8]}
18. h4 {[%clk 0:02:27]} 18... cxd3 {[%clk 0:01:51.7]} 19. cxd3 {[%clk
0:02:27.5]} 19... Bc5 {[%clk 0:01:47.3]} 20. Bxc5 {[%clk 0:02:10.8]} 20... Nxc5
{[%clk 0:01:45.7]} 21. g5 {[%clk 0:02:11.2]} 21... hxg5 {[%clk 0:01:45.3]} 22.
hxg5 {[%clk 0:02:12.1]} 22... Nh7 {[%clk 0:01:44.3]} 23. Nh5 {[%clk 0:01:52.5]}
23... Qg6 {[%clk 0:01:10]} 24. Nhxg7 {[%clk 0:01:34.8]} 24... Nxg5 {[%clk
0:01:08.9]} 25. Nxe8 {[%clk 0:01:31.9]} 25... Rxe8 {[%clk 0:01:08.2]} 26. Qg4
{[%clk 0:01:29.6]} 26... Nxd3 {[%clk 0:01:04.7]} 27. Rad1 {[%clk 0:01:24.7]}
27... Nf4 {[%clk 0:01:04.4]} 28. Rd6 {[%clk 0:01:24.1]} 28... Ngh3+ {[%clk
0:01:01.1]} 29. Bxh3 {[%clk 0:01:09.9]} 29... Nxh3+ {[%clk 0:01:00.3]} 30. Kh2
{[%clk 0:01:10.5]} 30... Qxg4 {[%clk 0:00:56.5]} 31. Nh6+ {[%clk 0:01:10.5]}
31... Kg7 {[%clk 0:00:54.2]} 32. Nxg4 {[%clk 0:01:11.4]} 32... Ng5 {[%clk
0:00:52.3]} 33. Rdf6 {[%clk 0:01:02.8]} 33... Bxe4 {[%clk 0:00:50.4]} 34. Kg3
{[%clk 0:00:57.4]} 34... Bg6 {[%clk 0:00:49.3]} 35. Rc6 {[%clk 0:00:44.5]} 35...
Re7 {[%clk 0:00:34.2]} 36. Ne3 {[%clk 0:00:42.6]} 36... Ne4+ {[%clk 0:00:23.3]}
37. Kg4 {[%clk 0:00:41.4]} 37... Nd2 {[%clk 0:00:14.4]} 38. Rd1 {[%clk
0:00:36.5]} 38... Ne4 {[%clk 0:00:12.3]} 39. Rd8 {[%clk 0:00:36.2]} 39... Nf6+
{[%clk 0:00:11.2]} 40. Rxf6 {[%clk 0:00:31.8]} 40... Kxf6 {[%clk 0:00:11.1]} 41.
Nd5+ {[%clk 0:00:32.7]} 41... Ke6 {[%clk 0:00:11.2]} 42. Nxe7 {[%clk 0:00:33.6]}
42... Kxe7 {[%clk 0:00:11.2]} 43. Ra8 {[%clk 0:00:32.2]} 43... f5+ {[%clk
0:00:09.9]} 44. Kg5 {[%clk 0:00:31.9]} 44... Bf7 {[%clk 0:00:09.1]} 45. Rxa7+
{[%clk 0:00:31.9]} 45... Ke6 {[%clk 0:00:09.5]} 46. Ra6+ {[%clk 0:00:31.2]}
46... Kd5 {[%clk 0:00:09.5]} 47. Kxf5 {[%clk 0:00:31.7]} 47... e4 {[%clk
0:00:07.6]} 48. Ra7 {[%clk 0:00:31.6]} 48... Bg8 {[%clk 0:00:07]} 49. Rd7+
{[%clk 0:00:29.9]} 49... Kc6 {[%clk 0:00:06.7]} 50. Rd8 {[%clk 0:00:30.2]} 50...
Bxa2 {[%clk 0:00:06.1]} 51. Kxe4 {[%clk 0:00:28.8]} 51... Kc5 {[%clk 0:00:06.5]}
52. Kd3 {[%clk 0:00:28.4]} 52... Bb1+ {[%clk 0:00:05.8]} 53. Kd2 {[%clk
0:00:28.3]} 53... Kc4 {[%clk 0:00:06.2]} 54. Kc1 {[%clk 0:00:26]} 54... Bg6
{[%clk 0:00:05.4]} 55. Rg8 {[%clk 0:00:25.9]} 55... Bf5 {[%clk 0:00:04.8]} 56.
Rg5 {[%clk 0:00:25.5]} 56... Bh7 {[%clk 0:00:04.5]} 57. Rg4+ {[%clk 0:00:25]}
57... Kb3 {[%clk 0:00:04.4]} 58. Rg3+ {[%clk 0:00:23.7]} 58... Ka2 {[%clk
0:00:03.8]} 59. Rh3 {[%clk 0:00:21.4]} 59... Bf5 {[%clk 0:00:03.3]} 60. Rh4
{[%clk 0:00:22.3]} 60... Kb3 {[%clk 0:00:02.3]} 61. Rf4 {[%clk 0:00:21.5]} 61...
Bg6 {[%clk 0:00:02.2]} 62. Rf2 {[%clk 0:00:20.4]} 62... Bh7 {[%clk 0:00:01.7]}
63. Rd2 {[%clk 0:00:19.9]} 63... Bg6 {[%clk 0:00:01.2]} 64. Kd1 {[%clk
0:00:19.7]} 1-0

[Event "*** Titled Tuesday Blitz"]
[Site "Chess.com"]
[Date "2021.03.09"]
[Round "4"]
[White "IMVoja"]
[Black "Iball95"]
[Result "0-1"]
[WhiteElo "2411"]
[BlackElo "2653"]
[TimeControl "180+1"]
[EndTime "10:42:48 PST"]
[Termination "Iball95 won on time"]

1. e4 {[%clk 0:03:00.9]} 1... c5 {[%clk 0:03:00]} 2. Nf3 {[%clk 0:03:00.5]} 2...
g6 {[%clk 0:02:59.9]} 3. c3 {[%clk 0:03:00.1]} 3... Bg7 {[%clk 0:02:59.8]} 4. d4
{[%clk 0:03:00.3]} 4... cxd4 {[%clk 0:03:00.7]} 5. cxd4 {[%clk 0:03:00.8]} 5...
d5 {[%clk 0:03:00.9]} 6. e5 {[%clk 0:03:01.2]} 6... Bg4 {[%clk 0:03:00.8]} 7.
Bb5+ {[%clk 0:03:01.1]} 7... Nd7 {[%clk 0:03:00.4]} 8. Nbd2 {[%clk 0:02:59.1]}
8... e6 {[%clk 0:02:56.6]} 9. O-O {[%clk 0:02:57.4]} 9... Ne7 {[%clk 0:02:56.4]}
10. b3 {[%clk 0:02:55.6]} 10... O-O {[%clk 0:02:54.7]} 11. h3 {[%clk 0:02:54.9]}
11... Bxf3 {[%clk 0:02:52]} 12. Nxf3 {[%clk 0:02:54.8]} 12... a6 {[%clk
0:02:52.3]} 13. Bd3 {[%clk 0:02:52.5]} 13... Nc6 {[%clk 0:02:52.5]} 14. Be3
{[%clk 0:02:47.2]} 14... f6 {[%clk 0:02:48.6]} 15. exf6 {[%clk 0:02:44.7]} 15...
Qxf6 {[%clk 0:02:49.5]} 16. Be2 {[%clk 0:02:35]} 16... Rac8 {[%clk 0:02:46.4]}
17. a3 {[%clk 0:02:29.1]} 17... Kh8 {[%clk 0:02:44.7]} 18. Qd2 {[%clk
0:02:27.6]} 18... Qe7 {[%clk 0:01:55]} 19. Bh6 {[%clk 0:02:18.1]} 19... Nf6
{[%clk 0:01:47.4]} 20. Bxg7+ {[%clk 0:02:14.3]} 20... Kxg7 {[%clk 0:01:48.3]}
21. Bd3 {[%clk 0:02:08.2]} 21... e5 {[%clk 0:01:42.6]} 22. dxe5 {[%clk 0:02:06]}
22... Nxe5 {[%clk 0:01:43.5]} 23. Nxe5 {[%clk 0:02:05.4]} 23... Qxe5 {[%clk
0:01:44.4]} 24. Rfe1 {[%clk 0:01:55.2]} 24... Qd6 {[%clk 0:01:43.3]} 25. Rad1
{[%clk 0:01:54.6]} 25... Qxa3 {[%clk 0:01:41.1]} 26. b4 {[%clk 0:01:54.9]} 26...
Qc3 {[%clk 0:01:32.4]} 27. Re7+ {[%clk 0:01:44.8]} 27... Rf7 {[%clk 0:01:32.3]}
28. Rxf7+ {[%clk 0:01:41.8]} 28... Kxf7 {[%clk 0:01:33.2]} 29. Qf4 {[%clk
0:01:35]} 29... Qc7 {[%clk 0:01:08.7]} 30. Qd4 {[%clk 0:01:27.1]} 30... Re8
{[%clk 0:01:06.5]} 31. b5 {[%clk 0:01:12.8]} 31... axb5 {[%clk 0:01:07.4]} 32.
Bxb5 {[%clk 0:01:12.7]} 32... Re4 {[%clk 0:01:02.9]} 33. Qd2 {[%clk 0:01:08.3]}
33... Re7 {[%clk 0:01:01.8]} 34. Qd4 {[%clk 0:01:03]} 34... Qe5 {[%clk
0:01:01.6]} 35. Qb6 {[%clk 0:00:56.1]} 35... Kg7 {[%clk 0:00:58.9]} 36. Bd3
{[%clk 0:00:52.5]} 36... Qc7 {[%clk 0:00:54.3]} 37. Qd4 {[%clk 0:00:51.6]} 37...
Qe5 {[%clk 0:00:53.3]} 38. Qb6 {[%clk 0:00:51.4]} 38... Qc7 {[%clk 0:00:18.1]}
39. Qd4 {[%clk 0:00:50.6]} 39... b6 {[%clk 0:00:18.5]} 40. Rb1 {[%clk
0:00:37.4]} 40... Qc5 {[%clk 0:00:18.4]} 41. Qb2 {[%clk 0:00:37.5]} 41... Rb7
{[%clk 0:00:13.3]} 42. Rc1 {[%clk 0:00:33.8]} 42... Qd6 {[%clk 0:00:13.1]} 43.
Qd4 {[%clk 0:00:32.3]} 43... b5 {[%clk 0:00:11.9]} 44. Rb1 {[%clk 0:00:23.9]}
44... b4 {[%clk 0:00:12.2]} 45. Qb2 {[%clk 0:00:23.4]} 45... Kf7 {[%clk
0:00:12.1]} 46. Qd4 {[%clk 0:00:22.8]} 46... Qb6 {[%clk 0:00:11.8]} 47. Qb2
{[%clk 0:00:20.8]} 47... b3 {[%clk 0:00:11.8]} 48. Re1 {[%clk 0:00:18.3]} 48...
Qb4 {[%clk 0:00:10.5]} 49. Rb1 {[%clk 0:00:18.1]} 49... d4 {[%clk 0:00:09.8]}
50. Rd1 {[%clk 0:00:16.8]} 50... Kg7 {[%clk 0:00:09.7]} 51. Qe2 {[%clk
0:00:16.3]} 51... b2 {[%clk 0:00:08.9]} 52. Bb1 {[%clk 0:00:16.5]} 52... Qc3
{[%clk 0:00:08.3]} 53. Qe5 {[%clk 0:00:15.8]} 53... Qc1 {[%clk 0:00:07]} 54. Qe2
{[%clk 0:00:15.1]} 54... Rc7 {[%clk 0:00:06.8]} 55. Qd3 {[%clk 0:00:11.4]} 55...
Qxd1+ {[%clk 0:00:06.5]} 56. Qxd1 {[%clk 0:00:07.8]} 56... Rc1 {[%clk
0:00:07.4]} 0-1

[Event "*** Titled Tuesday Blitz"]
[Site "Chess.com"]
[Date "2021.03.09"]
[Round "4"]
[White "katchesskat"]
[Black "moro182"]
[Result "0-1"]
[WhiteElo "2318"]
[BlackElo "2689"]
[TimeControl "180+1"]
[EndTime "10:42:50 PST"]
[Termination "moro182 won on time"]

1. c4 {[%clk 0:03:00.9]} 1... g6 {[%clk 0:02:58.8]} 2. Nf3 {[%clk 0:02:57.3]}
2... Bg7 {[%clk 0:02:59]} 3. e3 {[%clk 0:02:57.1]} 3... e5 {[%clk 0:02:54.7]} 4.
Qc2 {[%clk 0:02:56.4]} 4... Nc6 {[%clk 0:02:52.5]} 5. a3 {[%clk 0:02:55.9]} 5...
Nge7 {[%clk 0:02:50.1]} 6. Be2 {[%clk 0:02:52]} 6... O-O {[%clk 0:02:49.3]} 7.
h4 {[%clk 0:02:51.6]} 7... h5 {[%clk 0:02:35.5]} 8. Ng5 {[%clk 0:02:46.6]} 8...
d5 {[%clk 0:02:14.1]} 9. cxd5 {[%clk 0:02:44.4]} 9... Qxd5 {[%clk 0:02:13.9]}
10. Bf3 {[%clk 0:02:42.6]} 10... Qd6 {[%clk 0:02:12.6]} 11. Be2 {[%clk
0:02:36.8]} 11... Bf5 {[%clk 0:02:09.5]} 12. d3 {[%clk 0:02:34.8]} 12... Rad8
{[%clk 0:02:08.7]} 13. Ne4 {[%clk 0:02:29.4]} 13... Qd7 {[%clk 0:01:53.5]} 14.
Nbd2 {[%clk 0:02:25.7]} 14... b6 {[%clk 0:01:50]} 15. b4 {[%clk 0:02:24.9]}
15... a5 {[%clk 0:01:46.1]} 16. b5 {[%clk 0:02:24.2]} 16... Na7 {[%clk
0:01:43.6]} 17. a4 {[%clk 0:02:23.9]} 17... Nac8 {[%clk 0:01:42]} 18. Ba3 {[%clk
0:02:17.5]} 18... Rfe8 {[%clk 0:01:34]} 19. Rc1 {[%clk 0:02:15.5]} 19... Nd5
{[%clk 0:01:33.5]} 20. Ng5 {[%clk 0:01:58.9]} 20... Bg4 {[%clk 0:01:25.8]} 21.
Ndf3 {[%clk 0:01:17.4]} 21... Nd6 {[%clk 0:01:10]} 22. Qb3 {[%clk 0:01:06.6]}
22... Nb7 {[%clk 0:00:53.9]} 23. Rc6 {[%clk 0:01:05.4]} 23... Nc5 {[%clk
0:00:36.2]} 24. Bxc5 {[%clk 0:01:03.8]} 24... bxc5 {[%clk 0:00:36.3]} 25. Rxc5
{[%clk 0:00:58.5]} 25... Nb4 {[%clk 0:00:36.1]} 26. O-O {[%clk 0:00:58.5]} 26...
Re7 {[%clk 0:00:28.1]} 27. Rd1 {[%clk 0:00:52.6]} 27... Kh8 {[%clk 0:00:26.7]}
28. Qc4 {[%clk 0:00:49.7]} 28... f6 {[%clk 0:00:24.8]} 29. Ne4 {[%clk
0:00:47.4]} 29... Be6 {[%clk 0:00:24.8]} 30. Qc1 {[%clk 0:00:37.1]} 30... Bb3
{[%clk 0:00:20.8]} 31. Rd2 {[%clk 0:00:34]} 31... Bxa4 {[%clk 0:00:20.9]} 32. d4
{[%clk 0:00:24.2]} 32... exd4 {[%clk 0:00:21.2]} 33. Rxd4 {[%clk 0:00:22.3]}
33... Qe8 {[%clk 0:00:21.6]} 34. Rxc7 {[%clk 0:00:20]} 34... Rxc7 {[%clk
0:00:13.1]} 35. Qxc7 {[%clk 0:00:20.9]} 35... Rxd4 {[%clk 0:00:13.1]} 36. Nxd4
{[%clk 0:00:20.8]} 36... Qxe4 {[%clk 0:00:13.3]} 37. b6 {[%clk 0:00:19.3]} 37...
Bc6 {[%clk 0:00:09.8]} 38. Nxc6 {[%clk 0:00:17.9]} 38... Qxc6 {[%clk 0:00:09.6]}
39. Bf3 {[%clk 0:00:17.1]} 39... Qe8 {[%clk 0:00:04.4]} 40. b7 {[%clk
0:00:17.1]} 40... Na6 {[%clk 0:00:04.9]} 41. Qc8 {[%clk 0:00:17.1]} 41... Qf8
{[%clk 0:00:05.4]} 42. Be2 {[%clk 0:00:14.2]} 42... Nb8 {[%clk 0:00:05.6]} 43.
Bc4 {[%clk 0:00:13.2]} 43... a4 {[%clk 0:00:05.4]} 44. Qc7 {[%clk 0:00:11.9]}
44... a3 {[%clk 0:00:05.5]} 45. Qa5 {[%clk 0:00:11.6]} 45... f5 {[%clk
0:00:05.4]} 46. Bd5 {[%clk 0:00:09.3]} 46... Bb2 {[%clk 0:00:04.9]} 47. Qc7
{[%clk 0:00:07.8]} 47... Bf6 {[%clk 0:00:04.7]} 48. Qb6 {[%clk 0:00:06.7]} 48...
Qd8 {[%clk 0:00:04.2]} 49. Qe6 {[%clk 0:00:05.9]} 49... a2 {[%clk 0:00:03.4]}
50. Bxa2 {[%clk 0:00:05.1]} 50... Qf8 {[%clk 0:00:03]} 51. g3 {[%clk 0:00:04.3]}
51... Kg7 {[%clk 0:00:03.4]} 52. Bd5 {[%clk 0:00:04.2]} 52... Qe7 {[%clk
0:00:03.8]} 53. Qc8 {[%clk 0:00:03.9]} 53... Be5 {[%clk 0:00:03.5]} 54. Qg8+
{[%clk 0:00:03.2]} 54... Kh6 {[%clk 0:00:03.9]} 55. Kg2 {[%clk 0:00:02.2]} 55...
Qg7 {[%clk 0:00:02.3]} 56. Qe8 {[%clk 0:00:01]} 56... Bf6 {[%clk 0:00:01.6]} 0-1